[Event "Early Titled Tuesday Blitz | February 8 2022"]
[White "Pourramezanali, Amirreza"]
[Black "Xiong, Jeffery"]
[WhiteFideId "12511412"]
[BlackFideId "2047640"]
[WhiteElo "2376"]
[BlackElo "2727"]
[Result "0-1"]
[Round "08"]
[TimeControl "180+1"]
[Date "2022.02.08"]
[WhiteClock "0:00:04"]
[BlackClock "0:00:17"]

1. d4 {[%clk 0:02:59]}  d5 {[%clk 0:02:56]} 2. c4 {[%clk 0:02:59]}  e6 {[%clk 0:02:56]} 3. Nc3 {[%clk 0:02:59]}  c5 {[%clk 0:02:56]} 4. cxd5 {[%clk 0:02:59]}  cxd4 {[%clk 0:02:57]} 5. Qa4+ {[%clk 0:02:58]}  Bd7 {[%clk 0:02:55]} 6. Qxd4 {[%clk 0:02:59]}  exd5 {[%clk 0:02:53]} 7. Qxd5 {[%clk 0:02:58]}  Nf6 {[%clk 0:02:53]} 8. Qd1 {[%clk 0:02:55]}  Bc5 {[%clk 0:02:48]} 9. Nf3 {[%clk 0:02:52]}  Nc6 {[%clk 0:02:43]} 10. e3 {[%clk 0:02:51]}  Qe7 {[%clk 0:02:43]} 11. a3 {[%clk 0:02:48]}  O-O-O {[%clk 0:02:43]} 12. Qc2 {[%clk 0:02:49]}  Kb8 {[%clk 0:02:43]} 13. Be2 {[%clk 0:02:39]}  g5 {[%clk 0:02:43]} 14. b4 {[%clk 0:02:30]}  g4 {[%clk 0:02:35]} 15. bxc5 {[%clk 0:02:14]}  gxf3 {[%clk 0:02:34]} 16. Bxf3 {[%clk 0:02:15]}  Nd4 {[%clk 0:02:34]} 17. Qd1 {[%clk 0:02:03]}  Bf5 {[%clk 0:02:25]} 18. O-O {[%clk 0:01:36]}  Nc2 {[%clk 0:02:26]} 19. Qe2 {[%clk 0:01:36]}  Bd3 {[%clk 0:02:25]} 20. Qd2 {[%clk 0:01:26]}  Nxa1 {[%clk 0:02:25]} 21. Qb2 {[%clk 0:01:25]}  Bxf1 {[%clk 0:02:22]} 22. Kxf1 {[%clk 0:01:26]}  Rhg8 {[%clk 0:01:16]} 23. c6 {[%clk 0:01:20]}  Rg5 {[%clk 0:01:14]} 24. e4 {[%clk 0:00:49]}  Rc5 {[%clk 0:01:14]} 25. Bf4+ {[%clk 0:00:40]}  Kc8 {[%clk 0:01:14]} 26. e5 {[%clk 0:00:38]}  Nd5 {[%clk 0:01:01]} 27. Nxd5 {[%clk 0:00:29]}  Rdxd5 {[%clk 0:01:02]} 28. Bg4+ {[%clk 0:00:07]}  Kb8 {[%clk 0:01:02]} 29. e6+ {[%clk 0:00:07]}  Ka8 {[%clk 0:01:02]} 30. exf7 {[%clk 0:00:06]}  Rxc6 {[%clk 0:00:48]} 31. Qh8+ {[%clk 0:00:05]}  Rd8 {[%clk 0:00:48]} 32. Qxa1 {[%clk 0:00:04]}  Qxf7 {[%clk 0:00:47]} 33. Be3 {[%clk 0:00:02]}  Re8 {[%clk 0:00:36]} 34. Bf3 {[%clk 0:00:02]}  Rc2 {[%clk 0:00:22]} 35. Kg1 {[%clk 0:00:02]}  Qc7 {[%clk 0:00:23]} 36. h3 {[%clk 0:00:02]}  Rxe3 {[%clk 0:00:17]} 37. Qh8+ {[%clk 0:00:02]}  Qc8 {[%clk 0:00:18]} 38. Qxc8+ {[%clk 0:00:03]}  Rxc8 {[%clk 0:00:18]} 39. fxe3 {[%clk 0:00:04]}  Rc3 {[%clk 0:00:19]} 40. e4 {[%clk 0:00:05]}  Rxa3 {[%clk 0:00:19]} 41. Kf2 {[%clk 0:00:05]}  Kb8 {[%clk 0:00:20]} 42. Bg4 {[%clk 0:00:05]}  Kc7 {[%clk 0:00:20]} 43. Bf5 {[%clk 0:00:05]}  h6 {[%clk 0:00:20]} 44. h4 {[%clk 0:00:06]}  Kd6 {[%clk 0:00:20]} 45. g4 {[%clk 0:00:06]}  Ke5 {[%clk 0:00:21]} 46. g5 {[%clk 0:00:07]}  hxg5 {[%clk 0:00:22]} 47. h5 {[%clk 0:00:07]}  Ra6 {[%clk 0:00:19]} 48. Kf3 {[%clk 0:00:06]}  Ra1 {[%clk 0:00:19]} 49. Kg2 {[%clk 0:00:04]}  b5 {[%clk 0:00:15]} 50. h6 {[%clk 0:00:04]}  Ra6 {[%clk 0:00:16]} 51. h7 {[%clk 0:00:04]}  Rh6 {[%clk 0:00:17]} 0-1


[Site "https://www.chess.com"]

[Event "Early Titled Tuesday Blitz | February 8 2022"]
[White "Praslov, Andrey"]
[Black "parintele_chess"]
[WhiteFideId "4147863"]
[WhiteElo "2365"]
[BlackElo "2236"]
[Result "1-0"]
[Round "08"]
[TimeControl "180+1"]
[Date "2022.02.08"]
[WhiteClock "0:00:08"]
[BlackClock "0:00:02"]

1. d4 {[%clk 0:03:00]}  d5 {[%clk 0:02:55]} 2. c4 {[%clk 0:02:59]}  e6 {[%clk 0:02:55]} 3. Nc3 {[%clk 0:02:58]}  a6 {[%clk 0:02:56]} 4. c5 {[%clk 0:02:56]}  Nc6 {[%clk 0:02:54]} 5. Bf4 {[%clk 0:02:51]}  Nf6 {[%clk 0:02:53]} 6. e3 {[%clk 0:02:51]}  Be7 {[%clk 0:02:48]} 7. Nf3 {[%clk 0:02:49]}  h6 {[%clk 0:02:46]} 8. Rb1 {[%clk 0:02:45]}  O-O {[%clk 0:02:26]} 9. Be2 {[%clk 0:02:43]}  a5 {[%clk 0:02:23]} 10. a3 {[%clk 0:02:41]}  b6 {[%clk 0:02:23]} 11. b4 {[%clk 0:02:41]}  axb4 {[%clk 0:02:23]} 12. axb4 {[%clk 0:02:42]}  Ra3 {[%clk 0:02:22]} 13. Nb5 {[%clk 0:02:39]}  Ra2 {[%clk 0:02:17]} 14. Bxc7 {[%clk 0:02:37]}  Qd7 {[%clk 0:02:15]} 15. Bxb6 {[%clk 0:02:37]}  Ba6 {[%clk 0:02:13]} 16. Nc3 {[%clk 0:02:37]}  Bxe2 {[%clk 0:02:10]} 17. Nxe2 {[%clk 0:02:38]}  Ne4 {[%clk 0:02:06]} 18. O-O {[%clk 0:02:34]}  Rfa8 {[%clk 0:02:05]} 19. b5 {[%clk 0:02:34]}  Nd8 {[%clk 0:02:00]} 20. Ne5 {[%clk 0:02:34]}  Qe8 {[%clk 0:01:59]} 21. Bxd8 {[%clk 0:02:15]}  Bxd8 {[%clk 0:01:57]} 22. b6 {[%clk 0:02:11]}  f6 {[%clk 0:01:55]} 23. Nf3 {[%clk 0:02:09]}  Qc6 {[%clk 0:01:49]} 24. Qd3 {[%clk 0:01:55]}  R8a3 {[%clk 0:01:47]} 25. Qb5 {[%clk 0:01:55]}  Qxb5 {[%clk 0:01:44]} 26. Rxb5 {[%clk 0:01:56]}  Rxe2 {[%clk 0:01:45]} 27. b7 {[%clk 0:01:56]}  Bc7 {[%clk 0:01:44]} 28. b8=Q+ {[%clk 0:01:52]}  Bxb8 {[%clk 0:01:44]} 29. Rxb8+ {[%clk 0:01:52]}  Kh7 {[%clk 0:01:44]} 30. Rb6 {[%clk 0:01:49]}  Raa2 {[%clk 0:01:34]} 31. Rxe6 {[%clk 0:01:36]}  Nxf2 {[%clk 0:01:34]} 32. c6 {[%clk 0:01:09]}  Ne4 {[%clk 0:01:20]} 33. Nh4 {[%clk 0:00:16]}  Rxe3 {[%clk 0:00:59]} 34. Rc1 {[%clk 0:00:15]}  Rc2 {[%clk 0:00:43]} 35. Rf1 {[%clk 0:00:11]}  Rec3 {[%clk 0:00:38]} 36. Nf5 {[%clk 0:00:09]}  Rxc6 {[%clk 0:00:33]} 37. Re7 {[%clk 0:00:10]}  Rc7 {[%clk 0:00:33]} 38. Re8 {[%clk 0:00:06]}  Rb2 {[%clk 0:00:26]} 39. Ne3 {[%clk 0:00:06]}  Ra7 {[%clk 0:00:22]} 40. Nxd5 {[%clk 0:00:06]}  Ng5 {[%clk 0:00:17]} 41. h4 {[%clk 0:00:05]}  Raa2 {[%clk 0:00:15]} 42. Nf4 {[%clk 0:00:05]}  Nf7 {[%clk 0:00:14]} 43. h5 {[%clk 0:00:02]}  Nh8 {[%clk 0:00:06]} 44. Rfe1 {[%clk 0:00:02]}  Rd2 {[%clk 0:00:05]} 45. d5 {[%clk 0:00:02]}  Rd4 {[%clk 0:00:04]} 46. g3 {[%clk 0:00:02]}  Ra3 {[%clk 0:00:03]} 47. Kf2 {[%clk 0:00:01]}  Ra2+ {[%clk 0:00:03]} 48. R1e2 {[%clk 0:00:02]}  Rxe2+ {[%clk 0:00:03]} 49. Kxe2 {[%clk 0:00:02]}  Ra4 {[%clk 0:00:02]} 50. Ke3 {[%clk 0:00:03]}  Ra3+ {[%clk 0:00:02]} 51. Kf2 {[%clk 0:00:03]}  Ra2+ {[%clk 0:00:02]} 52. Kf3 {[%clk 0:00:04]}  Ra3+ {[%clk 0:00:02]} 53. Kg4 {[%clk 0:00:04]}  f5+ {[%clk 0:00:02]} 54. Kxf5 {[%clk 0:00:04]}  Rxg3 {[%clk 0:00:03]} 55. Re7 {[%clk 0:00:05]}  Rf3 {[%clk 0:00:01]} 56. d6 {[%clk 0:00:05]}  Rxf4+ {[%clk 0:00:01]} 57. Kxf4 {[%clk 0:00:05]}  Nf7 {[%clk 0:00:01]} 58. Rxf7 {[%clk 0:00:05]}  Kg8 {[%clk 0:00:02]} 59. Ra7 {[%clk 0:00:05]}  Kh7 {[%clk 0:00:02]} 60. d7 {[%clk 0:00:06]}  Kh8 {[%clk 0:00:01]} 61. d8=Q+ {[%clk 0:00:07]}  Kh7 {[%clk 0:00:02]} 62. Qe7 {[%clk 0:00:08]} 1-0


[Site "https://www.chess.com"]

[Event "Early Titled Tuesday Blitz | February 8 2022"]
[White "Qashashvili, Alexandre"]
[Black "Zavgorodniy, Sergiy"]
[WhiteFideId "13600842"]
[BlackFideId "14110148"]
[WhiteElo "2316"]
[BlackElo "2420"]
[Result "0-1"]
[Round "08"]
[TimeControl "180+1"]
[Date "2022.02.08"]
[WhiteClock "0:00:35"]
[BlackClock "0:00:59"]

1. e4 {[%clk 0:03:00]}  e5 {[%clk 0:02:47]} 2. Nf3 {[%clk 0:03:00]}  d6 {[%clk 0:02:46]} 3. Bc4 {[%clk 0:02:59]}  Be7 {[%clk 0:02:45]} 4. d4 {[%clk 0:02:59]}  exd4 {[%clk 0:02:44]} 5. Nxd4 {[%clk 0:02:58]}  Nf6 {[%clk 0:02:44]} 6. Nc3 {[%clk 0:02:55]}  O-O {[%clk 0:02:44]} 7. O-O {[%clk 0:02:55]}  c6 {[%clk 0:02:43]} 8. Bg5 {[%clk 0:02:53]}  b5 {[%clk 0:02:42]} 9. Bd3 {[%clk 0:02:50]}  a6 {[%clk 0:02:37]} 10. a3 {[%clk 0:02:49]}  c5 {[%clk 0:02:35]} 11. Nf5 {[%clk 0:02:44]}  Bxf5 {[%clk 0:02:34]} 12. exf5 {[%clk 0:02:44]}  d5 {[%clk 0:02:34]} 13. Be2 {[%clk 0:02:39]}  d4 {[%clk 0:02:28]} 14. Bxf6 {[%clk 0:02:32]}  Bxf6 {[%clk 0:02:29]} 15. Ne4 {[%clk 0:02:31]}  Nd7 {[%clk 0:02:26]} 16. Bf3 {[%clk 0:02:28]}  Rb8 {[%clk 0:02:21]} 17. Re1 {[%clk 0:02:19]}  h6 {[%clk 0:02:19]} 18. Nxf6+ {[%clk 0:02:18]}  Qxf6 {[%clk 0:02:14]} 19. Qd3 {[%clk 0:02:12]}  Ne5 {[%clk 0:02:09]} 20. Qe4 {[%clk 0:02:12]}  Rfe8 {[%clk 0:02:07]} 21. Qf4 {[%clk 0:02:12]}  Re7 {[%clk 0:02:06]} 22. Be4 {[%clk 0:02:04]}  Rbe8 {[%clk 0:02:04]} 23. f3 {[%clk 0:02:02]}  Nc4 {[%clk 0:01:52]} 24. b3 {[%clk 0:01:49]}  Ne3 {[%clk 0:01:49]} 25. Qg3 {[%clk 0:01:39]}  Rxe4 {[%clk 0:01:44]} 26. fxe4 {[%clk 0:01:38]}  Nxc2 {[%clk 0:01:44]} 27. Rac1 {[%clk 0:01:31]}  Nxe1 {[%clk 0:01:42]} 28. Rxe1 {[%clk 0:01:32]}  c4 {[%clk 0:01:38]} 29. Qf4 {[%clk 0:01:26]}  d3 {[%clk 0:01:32]} 30. e5 {[%clk 0:01:23]}  Qg5 {[%clk 0:01:31]} 31. Qd4 {[%clk 0:00:55]}  Rd8 {[%clk 0:01:20]} 32. Qc3 {[%clk 0:00:44]}  d2 {[%clk 0:01:05]} 33. Rd1 {[%clk 0:00:37]}  Rd3 {[%clk 0:01:04]} 34. Qc2 {[%clk 0:00:36]}  Qe3+ {[%clk 0:01:03]} 35. Kh1 {[%clk 0:00:35]}  Qe1+ {[%clk 0:00:59]} 0-1


[Site "https://www.chess.com"]

[Event "Early Titled Tuesday Blitz | February 8 2022"]
[White "Rakhmanov, Aleksandr"]
[Black "Shimelkov, Vasiliy"]
[WhiteFideId "4173708"]
[BlackFideId "13701630"]
[WhiteElo "2500"]
[BlackElo "2073"]
[Result "1-0"]
[Round "08"]
[TimeControl "180+1"]
[Date "2022.02.08"]
[WhiteClock "0:01:09"]
[BlackClock "0:01:39"]

1. c4 {[%clk 0:03:00]}  c5 {[%clk 0:02:59]} 2. Nc3 {[%clk 0:02:59]}  Nc6 {[%clk 0:03:00]} 3. g3 {[%clk 0:02:59]}  g6 {[%clk 0:03:00]} 4. Bg2 {[%clk 0:02:58]}  Bg7 {[%clk 0:03:00]} 5. b3 {[%clk 0:02:58]}  e6 {[%clk 0:03:00]} 6. Ba3 {[%clk 0:02:58]}  b6 {[%clk 0:02:56]} 7. e3 {[%clk 0:02:56]}  Nge7 {[%clk 0:02:56]} 8. Nge2 {[%clk 0:02:55]}  O-O {[%clk 0:02:55]} 9. O-O {[%clk 0:02:52]}  d5 {[%clk 0:02:50]} 10. cxd5 {[%clk 0:02:52]}  exd5 {[%clk 0:02:49]} 11. d4 {[%clk 0:02:51]}  Ba6 {[%clk 0:02:45]} 12. dxc5 {[%clk 0:02:44]}  Bxe2 {[%clk 0:02:34]} 13. Nxe2 {[%clk 0:02:43]}  Bxa1 {[%clk 0:02:34]} 14. Qxa1 {[%clk 0:02:44]}  bxc5 {[%clk 0:02:33]} 15. Bxc5 {[%clk 0:02:43]}  Re8 {[%clk 0:02:31]} 16. b4 {[%clk 0:02:37]}  Nf5 {[%clk 0:02:23]} 17. Rd1 {[%clk 0:02:32]}  Qc7 {[%clk 0:02:16]} 18. Nf4 {[%clk 0:02:24]}  Nce7 {[%clk 0:02:04]} 19. g4 {[%clk 0:02:07]}  Nd6 {[%clk 0:01:52]} 20. Bxd5 {[%clk 0:01:56]}  Rad8 {[%clk 0:01:50]} 21. Qf6 {[%clk 0:01:53]}  Rf8 {[%clk 0:01:39]} 22. Bd4 {[%clk 0:01:09]} 1-0


[Site "https://www.chess.com"]

[Event "Early Titled Tuesday Blitz | February 8 2022"]
[White "Reprintsev, Alexander"]
[Black "Kucuksari, Kaan"]
[WhiteFideId "14100541"]
[BlackFideId "6380166"]
[WhiteElo "2126"]
[BlackElo "2305"]
[Result "0-1"]
[Round "08"]
[TimeControl "180+1"]
[Date "2022.02.08"]
[WhiteClock "0:00:35"]
[BlackClock "0:01:43"]

1. e4 {[%clk 0:02:17]}  d5 {[%clk 0:03:00]} 2. exd5 {[%clk 0:02:13]}  Qxd5 {[%clk 0:03:01]} 3. Nc3 {[%clk 0:02:12]}  Qd6 {[%clk 0:03:01]} 4. g3 {[%clk 0:02:11]}  Nf6 {[%clk 0:02:57]} 5. Bg2 {[%clk 0:02:09]}  c6 {[%clk 0:02:57]} 6. d3 {[%clk 0:02:07]}  Bg4 {[%clk 0:02:55]} 7. Nge2 {[%clk 0:02:07]}  Nbd7 {[%clk 0:02:54]} 8. h3 {[%clk 0:02:07]}  Bxe2 {[%clk 0:02:51]} 9. Qxe2 {[%clk 0:02:07]}  e6 {[%clk 0:02:45]} 10. Bf4 {[%clk 0:02:01]}  Qb4 {[%clk 0:02:41]} 11. O-O-O {[%clk 0:01:57]}  Bd6 {[%clk 0:02:40]} 12. a3 {[%clk 0:01:57]}  Bxf4+ {[%clk 0:02:40]} 13. gxf4 {[%clk 0:01:57]}  Qxf4+ {[%clk 0:02:41]} 14. Kb1 {[%clk 0:01:58]}  O-O-O {[%clk 0:02:38]} 15. h4 {[%clk 0:01:52]}  Nd5 {[%clk 0:02:38]} 16. Ne4 {[%clk 0:01:51]}  N7f6 {[%clk 0:02:37]} 17. h5 {[%clk 0:01:50]}  h6 {[%clk 0:02:36]} 18. Nd2 {[%clk 0:01:47]}  Ng4 {[%clk 0:02:33]} 19. Rdf1 {[%clk 0:01:41]}  Kb8 {[%clk 0:02:28]} 20. Nc4 {[%clk 0:01:41]}  Qd4 {[%clk 0:02:12]} 21. c3 {[%clk 0:01:40]}  Nf4 {[%clk 0:02:02]} 22. Qxg4 {[%clk 0:01:18]}  Qxd3+ {[%clk 0:02:01]} 23. Ka1 {[%clk 0:01:18]}  Qxc4 {[%clk 0:02:00]} 24. Rh4 {[%clk 0:01:14]}  e5 {[%clk 0:01:58]} 25. Qxg7 {[%clk 0:01:14]}  Qe2 {[%clk 0:01:56]} 26. Rxf4 {[%clk 0:00:44]}  exf4 {[%clk 0:01:57]} 27. Qxf7 {[%clk 0:00:44]}  f3 {[%clk 0:01:56]} 28. Qxf3 {[%clk 0:00:35]}  Qxf3 {[%clk 0:01:56]} 29. Bxf3 {[%clk 0:00:35]}  Rhf8 {[%clk 0:01:57]} 30. Be4 {[%clk 0:00:35]}  Rde8 {[%clk 0:01:52]} 31. Bg6 {[%clk 0:00:34]}  Re3 {[%clk 0:01:38]} 32. f4 {[%clk 0:00:34]}  Kc7 {[%clk 0:01:36]} 33. f5 {[%clk 0:00:34]}  Rf6 {[%clk 0:01:36]} 34. Rd1 {[%clk 0:00:34]}  Rd6 {[%clk 0:01:36]} 35. Rxd6 {[%clk 0:00:32]}  Kxd6 {[%clk 0:01:37]} 36. f6 {[%clk 0:00:32]}  Rf3 {[%clk 0:01:34]} 37. f7 {[%clk 0:00:32]}  Ke7 {[%clk 0:01:35]} 38. Ka2 {[%clk 0:00:31]}  Rxf7 {[%clk 0:01:35]} 39. Bxf7 {[%clk 0:00:31]}  Kxf7 {[%clk 0:01:36]} 40. Kb3 {[%clk 0:00:31]}  Kf6 {[%clk 0:01:37]} 41. Kc4 {[%clk 0:00:32]}  Kg5 {[%clk 0:01:37]} 42. Kc5 {[%clk 0:00:32]}  Kxh5 {[%clk 0:01:38]} 43. Kd6 {[%clk 0:00:33]}  Kg4 {[%clk 0:01:39]} 44. Kc7 {[%clk 0:00:34]}  h5 {[%clk 0:01:40]} 45. Kxb7 {[%clk 0:00:35]}  h4 {[%clk 0:01:41]} 46. a4 {[%clk 0:00:35]}  h3 {[%clk 0:01:42]} 47. a5 {[%clk 0:00:35]}  h2 {[%clk 0:01:42]} 48. a6 {[%clk 0:00:35]}  h1=Q {[%clk 0:01:43]} 49. Kxa7 {[%clk 0:00:35]}  Qd5 {[%clk 0:01:43]} 0-1


[Site "https://www.chess.com"]

[Event "Early Titled Tuesday Blitz | February 8 2022"]
[White "Rudzinska, Michalina"]
[Black "Bettalli, Francesco"]
[WhiteFideId "1172883"]
[BlackFideId "2816453"]
[WhiteElo "1904"]
[BlackElo "2216"]
[Result "1-0"]
[Round "08"]
[TimeControl "180+1"]
[Date "2022.02.08"]
[WhiteClock "0:01:30"]
[BlackClock "0:01:58"]

1. f4 {[%clk 0:02:57]}  e5 {[%clk 0:02:59]} 2. fxe5 {[%clk 0:02:56]}  d6 {[%clk 0:02:59]} 3. exd6 {[%clk 0:02:54]}  Bxd6 {[%clk 0:03:00]} 4. Nf3 {[%clk 0:02:51]}  g5 {[%clk 0:03:00]} 5. e4 {[%clk 0:02:32]}  g4 {[%clk 0:03:00]} 6. d4 {[%clk 0:02:26]}  gxf3 {[%clk 0:03:00]} 7. Qxf3 {[%clk 0:02:27]}  h5 {[%clk 0:02:53]} 8. e5 {[%clk 0:02:22]}  Be7 {[%clk 0:02:31]} 9. Bc4 {[%clk 0:02:19]}  Be6 {[%clk 0:02:29]} 10. Bxe6 {[%clk 0:02:18]}  fxe6 {[%clk 0:02:30]} 11. O-O {[%clk 0:02:16]}  Qd5 {[%clk 0:02:27]} 12. Qf7+ {[%clk 0:02:14]}  Kd7 {[%clk 0:02:26]} 13. Be3 {[%clk 0:02:12]}  Nc6 {[%clk 0:02:25]} 14. Nc3 {[%clk 0:02:11]}  Qc4 {[%clk 0:02:21]} 15. d5 {[%clk 0:02:04]}  exd5 {[%clk 0:02:17]} 16. e6+ {[%clk 0:01:54]}  Kd8 {[%clk 0:02:14]} 17. Nxd5 {[%clk 0:01:34]}  b6 {[%clk 0:01:58]} 18. Qf8+ {[%clk 0:01:30]} 1-0


[Site "https://www.chess.com"]

[Event "Early Titled Tuesday Blitz | February 8 2022"]
[White "Shton, Roman"]
[Black "Dzhaparov, Medet"]
[WhiteFideId "14137461"]
[BlackFideId "13803689"]
[WhiteElo "2038"]
[BlackElo "1702"]
[Result "1-0"]
[Round "08"]
[TimeControl "180+1"]
[Date "2022.02.08"]
[WhiteClock "0:01:10"]
[BlackClock "0:01:50"]

1. d4 {[%clk 0:02:55]}  Nf6 {[%clk 0:02:59]} 2. Nf3 {[%clk 0:02:55]}  g6 {[%clk 0:02:51]} 3. c4 {[%clk 0:02:55]}  d5 {[%clk 0:02:51]} 4. Nc3 {[%clk 0:02:56]}  Bg7 {[%clk 0:02:51]} 5. cxd5 {[%clk 0:02:56]}  Nxd5 {[%clk 0:02:51]} 6. e4 {[%clk 0:02:57]}  Nxc3 {[%clk 0:02:51]} 7. bxc3 {[%clk 0:02:58]}  c5 {[%clk 0:02:52]} 8. Be2 {[%clk 0:02:58]}  Nc6 {[%clk 0:02:52]} 9. Be3 {[%clk 0:02:57]}  O-O {[%clk 0:02:52]} 10. O-O {[%clk 0:02:57]}  Bg4 {[%clk 0:02:52]} 11. d5 {[%clk 0:02:50]}  Ne5 {[%clk 0:02:42]} 12. Nxe5 {[%clk 0:02:37]}  Bxe2 {[%clk 0:02:42]} 13. Nxf7 {[%clk 0:02:32]}  Bxd1 {[%clk 0:02:37]} 14. Nxd8 {[%clk 0:02:32]}  Be2 {[%clk 0:02:30]} 15. Ne6 {[%clk 0:02:32]}  Bxf1 {[%clk 0:02:19]} 16. Nxf8 {[%clk 0:02:32]}  Bxc3 {[%clk 0:02:16]} 17. Rxf1 {[%clk 0:02:28]}  Rxf8 {[%clk 0:02:15]} 18. Bxc5 {[%clk 0:02:28]}  Rf4 {[%clk 0:02:14]} 19. f3 {[%clk 0:02:23]}  Kf8 {[%clk 0:02:10]} 20. Bxa7 {[%clk 0:02:22]}  Rf6 {[%clk 0:02:08]} 21. Rc1 {[%clk 0:02:13]}  Be5 {[%clk 0:02:05]} 22. Rc2 {[%clk 0:02:04]}  Ra6 {[%clk 0:02:05]} 23. Be3 {[%clk 0:02:03]}  b5 {[%clk 0:02:03]} 24. g3 {[%clk 0:01:59]}  Ra3 {[%clk 0:02:02]} 25. Kf2 {[%clk 0:01:58]}  b4 {[%clk 0:02:02]} 26. f4 {[%clk 0:01:51]}  Bc3 {[%clk 0:02:02]} 27. Bd2 {[%clk 0:01:51]}  Bd4+ {[%clk 0:02:00]} 28. Kg2 {[%clk 0:01:48]}  b3 {[%clk 0:02:00]} 29. axb3 {[%clk 0:01:47]}  Rxb3 {[%clk 0:02:01]} 30. e5 {[%clk 0:01:35]}  Rd3 {[%clk 0:01:59]} 31. Rc8+ {[%clk 0:01:28]}  Kf7 {[%clk 0:01:58]} 32. Bb4 {[%clk 0:01:27]}  Rb3 {[%clk 0:01:56]} 33. Rc4 {[%clk 0:01:16]}  Rb2+ {[%clk 0:01:55]} 34. Kf3 {[%clk 0:01:16]}  Bb6 {[%clk 0:01:52]} 35. e6+ {[%clk 0:01:10]}  Kf6 {[%clk 0:01:50]} 36. Bc3+ {[%clk 0:01:10]} 1-0


[Site "https://www.chess.com"]

[Event "Early Titled Tuesday Blitz | February 8 2022"]
[White "Silich, Yahor"]
[Black "Sarkar, Justin"]
[WhiteFideId "13513656"]
[BlackFideId "2010011"]
[WhiteElo "2101"]
[BlackElo "2038"]
[Result "1-0"]
[Round "08"]
[TimeControl "180+1"]
[Date "2022.02.08"]
[WhiteClock "0:01:37"]
[BlackClock "0:00:02"]

1. e4 {[%clk 0:03:00]}  c5 {[%clk 0:02:51]} 2. Nf3 {[%clk 0:03:00]}  Nc6 {[%clk 0:02:51]} 3. Bb5 {[%clk 0:03:00]}  a6 {[%clk 0:02:51]} 4. Bxc6 {[%clk 0:02:57]}  bxc6 {[%clk 0:02:45]} 5. O-O {[%clk 0:02:48]}  d5 {[%clk 0:02:44]} 6. d3 {[%clk 0:02:48]}  Nf6 {[%clk 0:02:41]} 7. e5 {[%clk 0:02:48]}  Ng8 {[%clk 0:02:25]} 8. Nc3 {[%clk 0:02:45]}  Bg4 {[%clk 0:02:20]} 9. Na4 {[%clk 0:02:45]}  e6 {[%clk 0:02:04]} 10. b3 {[%clk 0:02:45]}  Ne7 {[%clk 0:01:44]} 11. Ba3 {[%clk 0:02:39]}  Ng6 {[%clk 0:01:41]} 12. Re1 {[%clk 0:02:39]}  Nh4 {[%clk 0:01:38]} 13. Bc1 {[%clk 0:02:15]}  Bxf3 {[%clk 0:00:52]} 14. gxf3 {[%clk 0:02:15]}  Be7 {[%clk 0:00:51]} 15. Bf4 {[%clk 0:02:14]}  O-O {[%clk 0:00:48]} 16. c4 {[%clk 0:02:14]}  f6 {[%clk 0:00:40]} 17. Bg3 {[%clk 0:02:10]}  fxe5 {[%clk 0:00:34]} 18. Bxh4 {[%clk 0:01:58]}  Bxh4 {[%clk 0:00:33]} 19. Nxc5 {[%clk 0:01:58]}  Qg5+ {[%clk 0:00:27]} 20. Kh1 {[%clk 0:01:50]}  Bxf2 {[%clk 0:00:23]} 21. Nxe6 {[%clk 0:01:51]}  Qf5 {[%clk 0:00:18]} 22. Nxf8 {[%clk 0:01:50]}  Bxe1 {[%clk 0:00:18]} 23. Qxe1 {[%clk 0:01:44]}  Qxf3+ {[%clk 0:00:17]} 24. Kg1 {[%clk 0:01:45]}  Qg4+ {[%clk 0:00:16]} 25. Qg3 {[%clk 0:01:41]}  Qd4+ {[%clk 0:00:07]} 26. Kg2 {[%clk 0:01:41]}  Qxa1 {[%clk 0:00:07]} 27. Ne6 {[%clk 0:01:42]}  Qb2+ {[%clk 0:00:07]} 28. Kh3 {[%clk 0:01:41]}  g6 {[%clk 0:00:06]} 29. d4 {[%clk 0:01:37]}  exd4 {[%clk 0:00:04]} 30. Qe5 {[%clk 0:01:37]}  Qc3+ {[%clk 0:00:03]} 31. Kg4 {[%clk 0:01:37]}  Kf7 {[%clk 0:00:03]} 32. Ng5+ {[%clk 0:01:36]}  Kf8 {[%clk 0:00:02]} 33. Qf6+ {[%clk 0:01:34]}  Ke8 {[%clk 0:00:02]} 34. Qf7+ {[%clk 0:01:35]}  Kd8 {[%clk 0:00:02]} 35. Ne6+ {[%clk 0:01:36]}  Kc8 {[%clk 0:00:02]} 36. Qc7# {[%clk 0:01:37]} 1-0


[Site "https://www.chess.com"]

[Event "Early Titled Tuesday Blitz | February 8 2022"]
[White "Sliwicki, Damian"]
[Black "Osmak, Yuliia"]
[WhiteFideId "1127128"]
[BlackFideId "14101602"]
[WhiteElo "2084"]
[BlackElo "2302"]
[Result "0-1"]
[Round "08"]
[TimeControl "180+1"]
[Date "2022.02.08"]
[WhiteClock "0:01:32"]
[BlackClock "0:01:30"]

1. e4 {[%clk 0:02:59]}  d6 {[%clk 0:02:56]} 2. d4 {[%clk 0:02:53]}  Nf6 {[%clk 0:02:56]} 3. Nc3 {[%clk 0:02:40]}  c6 {[%clk 0:02:55]} 4. Nf3 {[%clk 0:02:29]}  Bg4 {[%clk 0:02:54]} 5. Be2 {[%clk 0:02:28]}  e6 {[%clk 0:02:53]} 6. h3 {[%clk 0:02:27]}  Bxf3 {[%clk 0:02:53]} 7. Bxf3 {[%clk 0:02:28]}  d5 {[%clk 0:02:53]} 8. Bg5 {[%clk 0:02:21]}  Be7 {[%clk 0:02:51]} 9. Bxf6 {[%clk 0:02:18]}  Bxf6 {[%clk 0:02:50]} 10. e5 {[%clk 0:02:19]}  Be7 {[%clk 0:02:49]} 11. Qd3 {[%clk 0:02:16]}  c5 {[%clk 0:02:45]} 12. dxc5 {[%clk 0:02:14]}  Nc6 {[%clk 0:02:37]} 13. O-O {[%clk 0:02:07]}  Nxe5 {[%clk 0:02:33]} 14. Qb5+ {[%clk 0:02:07]}  Qd7 {[%clk 0:02:32]} 15. Qxd7+ {[%clk 0:02:07]}  Kxd7 {[%clk 0:02:29]} 16. Be2 {[%clk 0:02:06]}  Bxc5 {[%clk 0:02:28]} 17. Rad1 {[%clk 0:02:02]}  a6 {[%clk 0:02:10]} 18. Nxd5 {[%clk 0:01:55]}  Kc6 {[%clk 0:01:56]} 19. Nc3 {[%clk 0:01:51]}  Rad8 {[%clk 0:01:55]} 20. Kh2 {[%clk 0:01:52]}  Rxd1 {[%clk 0:01:52]} 21. Bxd1 {[%clk 0:01:41]}  Rd8 {[%clk 0:01:48]} 22. Ne4 {[%clk 0:01:41]}  Be7 {[%clk 0:01:44]} 23. Bf3 {[%clk 0:01:41]}  Nxf3+ {[%clk 0:01:43]} 24. gxf3 {[%clk 0:01:41]}  f5 {[%clk 0:01:41]} 25. Ng3 {[%clk 0:01:33]}  Rd2 {[%clk 0:01:36]} 26. Nh5 {[%clk 0:01:34]}  g6 {[%clk 0:01:31]} 27. Nf4 {[%clk 0:01:33]}  Bd6 {[%clk 0:01:31]} 28. Kg3 {[%clk 0:01:32]}  g5 {[%clk 0:01:30]} 0-1


[Site "https://www.chess.com"]